Cogmind - Beta 12 @@@ ROGUE MODE // 2023.03.08 @ 16:53:44 Player: Elxavo Result: Destroyed by S-10 Pest with Light Assault Rifle Performance ------------- Evolutions (0) 0 Regions Visited (2) 400 Robots Destroyed (26) 130 Value Destroyed (547) 547 Prototype IDs (2) 40 Alien Tech Used (0) 0 Bonus (0) 0 TOTAL SCORE: 1117 Bonus ------- None Cogmind --------- Core Integrity 0/250 Matter 269/300 Energy 70/100 System Corruption 0% Temperature Warm (112) Movement Walking (400) Ox4 Location -10/Mines Parts ------- > --- POWER (1) -------- (None) > --- PROPULSION (2) --- Aluminum Leg Aluminum Leg > --- UTILITY (2) ------ Huge Storage Unit Targeting Computer > --- WEAPON (2) ------- Medium Laser Medium Laser > --- INVENTORY (25) --- Light Ion Engine Light Treads Light Treads Aluminum Leg Aluminum Leg Heat Sink Improved Heat Sink High-capacity Matter Pod (11) Signal Interpreter Terrain Scan Processor Medium Laser Small Laser Particle Gun Light Assault Rifle Autogun Autogun Grenade Launcher Peak State ------------ > --- POWER ------------ Ion Engine > --- PROPULSION ------- Aluminum Leg Aluminum Leg > --- UTILITY ---------- Huge Storage Unit Light Armor Plating > --- WEAPON ----------- Light Assault Rifle Light Assault Rifle > --- INVENTORY -------- Ion Engine Light Treads Light Treads Aluminum Leg Aluminum Leg Heat Sink Signal Interpreter Terrain Scan Processor Targeting Computer Medium Laser Medium Laser Medium Laser Small Laser Light Assault Rifle Autogun Autogun Grenade Launcher [Rating: 9] Favorites ----------- Power Ion Engine Engine Ion Engine Propulsion Aluminum Leg Treads Light Treads Leg Aluminum Leg Utility Huge Storage Unit Device Seismic Detector Storage Huge Storage Unit Processor Targeting Computer Protection Light Armor Plating Weapon Light Assault Rifle Energy Gun Medium Laser Ballistic Gun Light Assault Rifle Launcher Grenade Launcher Build | -11 -10 -10 ------- Run | Jun Mat Min Slots Evolved . | . . . Power . | . . . Propulsion . | . . . Utility . | . . . Weapon . | . . . Parts Attached 22 | 10 12 . Power 2 | 1 1 . Engine 2 | 1 1 . Core . | . . . Reactor . | . . . Propulsion 5 | 3 2 . Treads 1 | 1 . . Leg 4 | 2 2 . Wheel . | . . . Hover . | . . . Flight . | . . . Utility 6 | 3 3 . Device 1 | 1 . . Storage 3 | 2 1 . Processor 1 | . 1 . Hackware . | . . . Protection 1 | . 1 . Artifact . | . . . Weapon 9 | 3 6 . Energy Gun 3 | 1 2 . Energy Cannon . | . . . Ballistic Gun 4 | 2 2 . Ballistic Cannon . | . . . Launcher 2 | . 2 . Special Weapon . | . . . Impact Weapon . | . . . Slashing Weapon . | . . . Piercing Weapon . | . . . Special Melee Weapon . | . . . Unidentified Prototypes . | . . . Parts Lost 8 | . 8 . Power 2 | . 2 . Propulsion 2 | . 2 . Utility 2 | . 2 . Weapon 2 | . 2 . Highest Loss Streak 3 | . 3 . To Critical Strikes . | . . . Average Slot Usage (%) 92 | . 94 85 Engine 7 | . 8 . Leg 27 | . 27 28 Device 2 | . 3 . Storage 14 | . 14 14 Processor 8 | . 7 14 Protection 3 | . 3 . Energy Gun 6 | . 3 28 Ballistic Gun 18 | . 21 . Launcher 2 | . 3 . Naked Turns . | . . . Heaviest Build 90 | 17 90 84 Greatest Support 20 | 20 20 20 Greatest Overweight (x) 4 | . 4 4 Average Overweight (x) 3 | . 3 4 Largest Inventory Capacity 25 | 8 25 25 Average Capacity 23 | 7 24 25 Most Carried 20 | 6 20 17 Average Carried 13 | 4 13 17 Final Capacity 25 | 8 25 25 Final Carried 17 | 5 17 17 Class Distribution -------------------- 100% | Mutant Dominant Class ---------------- Mutant | -10/Materials Mutant | -10/Mines Resources | -11 -10 -10 ----------- Run | Jun Mat Min Matter Collected 647 | 337 287 23 Remotely . | . . . Salvage Created 709 | 95 588 26 Parts 54 | 9 44 1 Haulers Intercepted 1 | . 1 . Recyclers Shooed 5 | 1 4 . Parts Field Recycled . | . . . Retrieved Matter . | . . . Parts Self-Destructed . | . . . Prevented . | . . . Kills | -11 -10 -10 ------- Run | Jun Mat Min Combat Hostiles Destroyed 16 | . 14 2 Guns 14 | . 12 2 AOE 2 | . 2 . Classes Destroyed 7 | 3 4 . Worker 3 | 2 1 . Tunneler 2 | 1 1 . Hauler 1 | . 1 . Recycler 1 | 1 . . Watcher 3 | . 3 . Swarmer 4 | . 2 2 Grunt 12 | . 12 . Best Kill Streak 3 | 1 3 2 Combat Bots Only 3 | . 3 2 Max Kills in Single Turn 2 | 1 2 1 Gunslinging . | . . . Exploded 2 | . 2 . Melee . | . . . Uniques/NPCs Destroyed . | . . . Combat | -11 -10 -10 -------- Run | Jun Mat Min Damage Taken 1261 | . 1130 131 Core 252 | . 223 29 Absorbed by Shields . | . . . Core Remaining (%) 100 | 100 . . Volleys Fired 117 | 20 92 5 Largest 2 | 2 2 2 Hottest 100 | 40 50 100 Shots Fired 228 | 40 178 10 Gun 222 | 40 172 10 Cannon . | . . . Launcher 6 | . 6 . Special . | . . . Kinetic 212 | 40 172 . Thermal 10 | . . 10 Explosive 6 | . 6 . Electromagnetic . | . . . Robot Hit Streak 11 | 11 10 5 Robot Miss Streak 6 | 2 6 2 Penetration Max . | . . . Secondary Targets 2 | . 1 1 Max Gunslinging Chain 1 | . 1 1 Shots Hit Robots 151 | 33 111 7 Core Hits 56 | 9 45 2 Critical Kills . | . . . Critical Parts Destroyed 3 | 1 2 . Critical Strikes 4 | 1 2 1 Burn 1 | . . 1 Destroy 3 | 1 2 . Melee Attacks . | . . . Impact . | . . . Slashing . | . . . Piercing . | . . . Sneak Attacks . | . . . Combat Hostiles . | . . . Follow-up Attacks . | . . . Damage Inflicted 1617 | 290 1240 87 Guns 1278 | 290 901 87 Cannons . | . . . Explosions 339 | . 339 . Melee . | . . . Ramming . | . . . Kinetic 1191 | 290 901 . Thermal 87 | . . 87 Explosive 339 | . 339 . Electromagnetic . | . . . Impact . | . . . Slashing . | . . . Piercing . | . . . Highest Corruption . | . . . Average Corruption . | . . . Corruption Purged . | . . . Corruption Blocked . | . . . Overload Shots . | . . . Overflow Damage 9 | . 9 . Projectiles . | . . . Explosions 9 | . 9 . Melee . | . . . Knockbacks . | . . . Impact . | . . . Kinetic . | . . . Secondary . | . . . Self-Inflicted Damage 41 | . 41 . Shots 2 | . 2 . Rammed . | . . . Targets Rammed 1 | . 1 . Kicked 1 | . 1 . Crushed . | . . . Highest Temperature 112 | . 43 112 Average Temperature 17 | . 12 60 Received Heat Transfer 561 | . 561 . Siege Activations . | . . . Robots Corrupted . | . . . Combat Hostiles . | . . . Parts Fried . | . . . Impact Corruptions . | . . . Robots Melted . | . . . Combat Hostiles . | . . . Parts Melted 2 | . . 2 Heat Transferred 333 | . . 333 Parts Sabotaged . | . . . Parts Stolen . | . . . Parts Stripped . | . . . Power Chain Reactions . | . . . Missiles Intercepted . | . . . Alert | -11 -10 -10 ------- Run | Jun Mat Min Peak Influence 169 | 20 169 50 Initial 13 | . 13 . Average 38 | 8 47 1 Maximum Alert Level . | . . . Low Security (%) 100 | 100 100 100 Level 1 . | . . . Level 2 . | . . . Level 3 . | . . . Level 4 . | . . . Level 5 . | . . . High Security . | . . . Max Security . | . . . Squads Dispatched 3 | . 3 . Investigation 1 | . 1 . Extermination . | . . . Reinforcement 2 | . 2 . Assault . | . . . Garrison . | . . . Intercept . | . . . Searches Triggered . | . . . Construction Impeded . | . . . Haulers Reinforced . | . . . Active Scanning Responses . | . . . Cargo Convoy Interrupts . | . . . Stealth | -11 -10 -10 --------- Run | Jun Mat Min Distress Signals 3 | . 3 . Communications Jammed . | . . . Distress Signals . | . . . Times Spotted 39 | . 36 3 Peak Tracking Total 6 | . 6 3 Tactical Retreats . | . . . Traps | -11 -10 -10 ------- Run | Jun Mat Min Traps Triggered 1 | . 1 . Indirectly . | . . . Trap Hack Attempts . | . . . Triggered . | . . . Disarmed . | . . . Reprogrammed . | . . . Reused . | . . . Traps Extracted . | . . . Installed . | . . . Triggered . | . . . Machines | -11 -10 -10 ---------- Run | Jun Mat Min Machines Disabled . | . . . Max in Single Turn . | . . . Machines Repaired . | . . . Machines Sabotaged . | . . . Overloaded Fab Kills . | . . . Hacking | -11 -10 -10 --------- Run | Jun Mat Min Machines Accessed 6 | . 5 1 Terminals 5 | . 4 1 Fabricators . | . . . Repair Stations . | . . . Recycling Units 1 | . 1 . Scanalyzers . | . . . Garrison Access . | . . . Total Hacks 11 | . 10 1 Successful 6 | . 5 1 Failed 5 | . 5 . Catastrophic 1 | . 1 . Database Lockouts . | . . . Manual . | . . . Terminals 8 | . 7 1 Fabricators . | . . . Repair Stations . | . . . Recycling Units 3 | . 3 . Scanalyzers . | . . . Garrison Access . | . . . Terminal Hacks 5 | . 4 1 Prototype ID Bank 1 | . 1 . Locate Traps 1 | . 1 . Dispatch Records 1 | . . 1 Transport Status 1 | . 1 . Hauler Manifests 1 | . 1 . Fabricator Hacks . | . . . Repair Station Hacks . | . . . Recycling Unit Hacks 1 | . 1 . Retrieve Components 1 | . 1 . Scanalyzer . | . . . Garrison Access Hacks . | . . . Unauthorized Hacks . | . . . Terminals . | . . . Fabricators . | . . . Repair Stations . | . . . Recycling Units . | . . . Scanalyzers . | . . . Garrison Access . | . . . Data Cores Recovered . | . . . Used . | . . . Hacking Detections 3 | . 2 1 Full Trace Events . | . . . Feedback Events . | . . . Feedback Blocked . | . . . Robot Schematics Acquired . | . . . Robots Built . | . . . Authchips . | . . . Time . | . . . Total Robot Build Rating . | . . . Part Schematics Acquired . | . . . Parts Built . | . . . Authchips . | . . . Time . | . . . Total Part Build Rating . | . . . Parts Repaired . | . . . Time . | . . . Parts Recycled . | . . . Recycled Matter . | . . . Retrieved Matter . | . . . Retrieved Components 10 | . 10 . Parts Scanalyzed . | . . . Part Schematics Acquired . | . . . Parts Damaged . | . . . Bothacking | -11 -10 -10 ------------ Run | Jun Mat Min Used RIF Installer . | . . . Robots Hacked . | . . . Non-combat . | . . . Combat . | . . . Robot Hacks Applied . | . . . Relay Couplers Released . | . . . Fabnet Peak Effective % . | . . . Robots Rewired . | . . . Allies Hacked . | . . . Hacks Repelled . | . . . Allies | -11 -10 -10 -------- Run | Jun Mat Min Total Allies . | . . . Largest Group . | . . . Highest-Rated Group . | . . . Highest-Rated Ally . | . . . Total Orders . | . . . Ally Attacks . | . . . Total Damage . | . . . Kills . | . . . Allies Corrupted . | . . . Allies Melted . | . . . Intel | -11 -10 -10 ------- Run | Jun Mat Min Robot Analysis Total . | . . . Derelict Logs Recovered . | . . . Drone Launches . | . . . Drone Recoveries . | . . . Exploration | -11 -10 -10 ------------- Run | Jun Mat Min Turns Passed 2809 | 169 2246 394 Spaces Moved 722 | 90 537 95 Core 17 | 17 . . Treads 1 | 1 . . Legs 704 | 72 537 95 Wheels . | . . . Hover . | . . . Flight . | . . . Fastest Speed 50 | 50 120 400 Average Speed 334 | 107 361 400 Slowest Speed 400 | 160 400 400 Overloaded Moves . | . . . Propulsion Burnouts . | . . . Robots Hopped . | . . . Cave-ins Triggered . | . . . Exploration Rate (%) 36 | 5 76 27 Regions Visited 2 Branch Regions 1 Pre-discovered Areas 1 | . . 1 Known Exits Taken . | . . . Unknown Exits Taken 2 | 1 1 . Scrap Searched 1 | . . 1 Spaces Dug . | . . . Terrain Destroyed 41 | . 41 . Melee . | . . . Projectile . | . . . AOE 41 | . 41 . Terrain Rammed . | . . . Walls Destroyed . | . . . Machines Disabled . | . . . Actions | -11 -10 -10 --------- Run | Jun Mat Min Total 924 | 127 697 100 Wait 33 | . 33 . Move 720 | 89 536 95 Hop . | . . . Pick Up 29 | 8 21 . Fast Attach 4 | 4 . . Attach 10 | 3 7 . Detach . | . . . Swap 8 | 3 5 . Drop 2 | . 2 . Fire 117 | 20 92 5 Melee . | . . . Ram . | . . . Kick 1 | . 1 . Crush . | . . . Escape Stasis . | . . . Rewire . | . . . Trap . | . . . Miscellaneous . | . . . Route ------- -11/Junkyard -10/Materials (discovered 4 exits: [*Mat x2] / *Min x2) -10/Mines (discovered 1 exit: [*Mat]) History --------- Turn | Location | Event 7 | -11/Junkyard | Discovered new exit (range 15) 170 | -11/Junkyard | Entered Materials 228 | -10/Materials | Discovered new exit (range 8) 306 | -10/Materials | Build established: Mutant 1158 | -10/Materials | Discovered new exit (range 8) 1264 | -10/Materials | Core integrity fell below 50% 1293 | -10/Materials | Lost 3 parts (2n1u) 1313 | -10/Materials | Core integrity fell below 20% 1922 | -10/Materials | Discovered new exit (range 10) 2360 | -10/Materials | Discovered new exit (range 15) 2416 | -10/Materials | Entered Mines 2417 | -10/Mines | Learned location of Storage (-9) 2422 | -10/Mines | Met a Derelict bent on vengeance 2608 | -10/Mines | Discovered new exit (range 3) 2810 | -10/Mines | Destroyed by S-10 Pest with Light Assault Rifle Last Messages --------------- 02660_ Searching scrap... 02660_ Found Lrg. Storage Unit. 02660_ Found 23 Matter. 02661_ Acquired 23 matter. 02680_ Connecting with Terminal... 02680_ Current location identified: Mines >>Enumerate(Squads) Retrieving dispatch records... Found 4 active squads: 4x Patrol 02738_ K-01 Serf collects debris. 02767_ K-01 Serf cleans the Seismic Survey Station. 02799_ S-10 Pest suffers critical hit (Burn). 02799_ Flight Unit melted. 02799_ Lgt. Ion Engine melted. 02799_ S-10 Pest destroyed. 02801_ K-01 Serf collects debris. 02802_ S-10 Pest destroyed. 02802_ Switching to secondary target: S-10 Pest. 02804_ K-01 Serf collects debris. Map ----- +----------------------------------------------------+ | ??????????????????????????????????? | | ??????????????????????????????????? | | ??????????????????????????????????? | | ??????????????????????????????????? | | ??????????????????????????????????? | | ??????????????????????????????????? | | ??????????????????????????????????? | | ??????????????????????????????????? | | ??????????????????????????????????? | | ??????????????????????????????????? | | ??????????????????????????????????? | | ?????????????????? ??????????????? | | ????? ???????????? #??#??????????? | | ?????" ??????????# #?# ##???????? | | ????"" ??????????# ## ???????? | | ????"" ???????#### #???????? | | ???? ??????## #???????? | | ???""" ?????# #???????? | | ???""" ?????# #???????? | | ????"" ?????# #????????? | | ????? ????## #?????????? | | ?????? ??## """ #??????????? | | ??????# ?## """ #???????????? | | ??????# ## """ #???????????? | | ??????# # ##?###??????? | | ??????# %@ ## ##?????? | | ??????# s%k ##### | | ??????# k ### u | | ??????## ##?## | | ???????####???######## ## ##### | | ?????????????????????# #???#?????? | | ?????????????????????# #?????????? | | ??????????#####??????# #####?????? | | ?????????## #?##### #?????? | | ?????????# ## ### #?????# | | ?????????# #?# #??#### | | ??????????# ### ####T## | | ??????????# ### ## | | ??????????## #?# < ## | | ???????????## # #?# ! | | ????????????## ## ##?# | | ?????????????###?# ###??########## | | ????# ######???# ###???????????? | | ????# ##### #???????????? | | ?????# #???????????? | | ?????# ###### #???????????? | | ?????##########????# ###?????????? | | ???????????????????# ##????????? | | ??????????????????## ##???????? | | ?????????????????## #???????? | +----------------------------------------------------+ Best States ------------- Heat Dissipation 25 Energy Generation 10 Energy Capacity 250 Matter Stores 300 Matter Capacity 300 Sight Range 16 Terrain Scan Density 10 Armor Coverage 150 Evasion (%) 55 Targeting Accuracy 5 Recoil Reduction 1 Item Schematics ----------------- None Robot Schematics ------------------ None Fabricated ------------ Nothing Alien Tech Used ----------------- None Achievements -------------- None Challenges ------------ None Game ------ Seed LinearLightCannon Manual? 0 Play Time 00:21:15 Cumulative 14.6 hours Start 2023.03.08 @ 16:33:16 End 2023.03.08 @ 16:53:44 Sessions 1 Manual Loads 0 Difficulty Rogue Special Mode None Game No. 15 Rogue 15 Adventurer 0 Explorer 0 Win Type - Total 0 Types 0/0/0/0/0/0/0/0/0 Lore% 16 Gallery% 15 Achievement% 14 Wizard Run 0 Options --------- ASCII 0 Keyboard 0 Movement Mouse Keybinds 0 Fullscreen 1 Font 16/Terminus Map View 76x50 Tactical HUD 1 Map Filters NONE Filters NONE Steam 1 RUN: da7b346f-2433-4590-addc-5f080b6a734f